[Event "*** Titled Tuesday Blitz"]
[Site "Chess.com"]
[Date "2020.04.21"]
[Round "4"]
[White "Vice64"]
[Black "Gareth-Bale11"]
[Result "0-1"]
[WhiteElo "2523"]
[BlackElo "2755"]
[TimeControl "180+1"]
[EndTime "10:41:28 PDT"]
[Termination "Gareth-Bale11 won by checkmate"]

1. e4 {[%clk 0:03:00.9]} 1... e5 {[%clk 0:02:53.6]} 2. Nf3 {[%clk 0:03:00.9]}
2... Nc6 {[%clk 0:02:53.8]} 3. d4 {[%clk 0:03:01.3]} 3... exd4 {[%clk
0:02:53.7]} 4. c3 {[%clk 0:03:01.8]} 4... d5 {[%clk 0:02:49.3]} 5. exd5 {[%clk
0:03:00.6]} 5... Qxd5 {[%clk 0:02:50.2]} 6. cxd4 {[%clk 0:03:01]} 6... Nf6
{[%clk 0:02:46.6]} 7. Nc3 {[%clk 0:03:00.2]} 7... Bb4 {[%clk 0:02:46.1]} 8. Be2
{[%clk 0:02:55.8]} 8... O-O {[%clk 0:02:41.9]} 9. O-O {[%clk 0:02:55.4]} 9...
Qa5 {[%clk 0:02:38.4]} 10. a3 {[%clk 0:02:49.3]} 10... Bxc3 {[%clk 0:02:37]} 11.
bxc3 {[%clk 0:02:50.2]} 11... Qxc3 {[%clk 0:02:21.3]} 12. Bd2 {[%clk 0:02:27.9]}
12... Qb2 {[%clk 0:02:20.2]} 13. d5 {[%clk 0:02:14.6]} 13... Nxd5 {[%clk
0:02:07.6]} 14. Rb1 {[%clk 0:02:01.6]} 14... Qxa3 {[%clk 0:01:50.2]} 15. Bc1
{[%clk 0:02:01.1]} 15... Qd6 {[%clk 0:01:49.8]} 16. Bb2 {[%clk 0:01:57.9]} 16...
Bg4 {[%clk 0:01:45.9]} 17. Qb3 {[%clk 0:01:52.3]} 17... Nb6 {[%clk 0:01:26.9]}
18. Ba3 {[%clk 0:01:51]} 18... Qe6 {[%clk 0:01:17.3]} 19. Qb2 {[%clk 0:01:31.8]}
19... Rfe8 {[%clk 0:01:13.1]} 20. Bb5 {[%clk 0:01:25.2]} 20... Bxf3 {[%clk
0:01:11.4]} 21. gxf3 {[%clk 0:01:26.1]} 21... a6 {[%clk 0:01:03.3]} 22. Bd3
{[%clk 0:01:23.7]} 22... Ne5 {[%clk 0:01:01.3]} 23. Be4 {[%clk 0:01:24]} 23...
Nbc4 {[%clk 0:00:58.1]} 24. Qb4 {[%clk 0:01:23.5]} 24... a5 {[%clk 0:00:54.7]}
25. Qc3 {[%clk 0:01:20.4]} 25... Rad8 {[%clk 0:00:53.5]} 26. Rxb7 {[%clk
0:01:15.9]} 26... Nd2 {[%clk 0:00:53]} 27. Rc1 {[%clk 0:01:00.3]} 27... Nxe4
{[%clk 0:00:46.4]} 28. fxe4 {[%clk 0:01:01.2]} 28... Qg6+ {[%clk 0:00:36.4]} 29.
Qg3 {[%clk 0:01:01]} 29... Qxe4 {[%clk 0:00:36.6]} 30. Rbxc7 {[%clk 0:00:45.8]}
30... Rd3 {[%clk 0:00:35.8]} 31. Qg2 {[%clk 0:00:40.3]} 31... Nf3+ {[%clk
0:00:33.2]} 32. Kh1 {[%clk 0:00:38.7]} 32... Qe1+ {[%clk 0:00:27.7]} 33. Qf1
{[%clk 0:00:38.9]} 33... Qxf1+ {[%clk 0:00:26.5]} 34. Rxf1 {[%clk 0:00:39.8]}
34... h6 {[%clk 0:00:25.5]} 35. Bb2 {[%clk 0:00:36.8]} 35... Re4 {[%clk
0:00:24.2]} 36. Rc5 {[%clk 0:00:29]} 36... Rh4 {[%clk 0:00:23.4]} 37. Be5 {[%clk
0:00:29.3]} 37... Rh5 {[%clk 0:00:21.3]} 38. Bd6 {[%clk 0:00:29.6]} 38... Rxc5
{[%clk 0:00:20.1]} 39. Bxc5 {[%clk 0:00:30.4]} 39... Rc3 {[%clk 0:00:19.7]} 40.
Bd6 {[%clk 0:00:28]} 40... a4 {[%clk 0:00:18.4]} 41. Ra1 {[%clk 0:00:28]} 41...
Rc4 {[%clk 0:00:18.8]} 42. Kg2 {[%clk 0:00:27.2]} 42... Nd2 {[%clk 0:00:19]} 43.
f3 {[%clk 0:00:23.7]} 43... Nb3 {[%clk 0:00:18.8]} 44. Ra2 {[%clk 0:00:24.2]}
44... f6 {[%clk 0:00:18.6]} 45. Kf2 {[%clk 0:00:24.4]} 45... g5 {[%clk
0:00:18.7]} 46. Ke3 {[%clk 0:00:23.5]} 46... Kf7 {[%clk 0:00:19.1]} 47. Ba3
{[%clk 0:00:21.4]} 47... Kg6 {[%clk 0:00:18.5]} 48. Kd3 {[%clk 0:00:16.5]} 48...
Rd4+ {[%clk 0:00:18.4]} 49. Ke3 {[%clk 0:00:16.6]} 49... Rh4 {[%clk 0:00:18.5]}
50. Bd6 {[%clk 0:00:15.7]} 50... Na5 {[%clk 0:00:18.7]} 51. f4 {[%clk
0:00:14.9]} 51... Nc4+ {[%clk 0:00:18.1]} 52. Kf3 {[%clk 0:00:14.6]} 52... Nxd6
{[%clk 0:00:19]} 53. Rxa4 {[%clk 0:00:14.2]} 53... Nf5 {[%clk 0:00:18.3]} 54.
Kg2 {[%clk 0:00:11.9]} 54... Rxf4 {[%clk 0:00:17.7]} 55. Ra8 {[%clk 0:00:11.1]}
55... h5 {[%clk 0:00:16.2]} 56. Rg8+ {[%clk 0:00:11.1]} 56... Ng7 {[%clk
0:00:16.5]} 57. Ra8 {[%clk 0:00:11]} 57... h4 {[%clk 0:00:16.9]} 58. Ra3 {[%clk
0:00:10.9]} 58... Kh5 {[%clk 0:00:16.5]} 59. h3 {[%clk 0:00:11.4]} 59... Nf5
{[%clk 0:00:16.8]} 60. Ra8 {[%clk 0:00:11.3]} 60... Nh6 {[%clk 0:00:17]} 61. Rh8
{[%clk 0:00:10.5]} 61... g4 {[%clk 0:00:17.3]} 62. hxg4+ {[%clk 0:00:10.3]}
62... Rxg4+ {[%clk 0:00:18.2]} 63. Kh3 {[%clk 0:00:10.8]} 63... Rg3+ {[%clk
0:00:18.3]} 64. Kh2 {[%clk 0:00:11.4]} 64... Kg5 {[%clk 0:00:18.8]} 65. Rg8+
{[%clk 0:00:10.6]} 65... Nxg8 {[%clk 0:00:18.7]} 66. Kh1 {[%clk 0:00:11.5]}
66... Nh6 {[%clk 0:00:19]} 67. Kh2 {[%clk 0:00:12.1]} 67... Kg4 {[%clk
0:00:18.6]} 68. Kh1 {[%clk 0:00:13]} 68... Rc3 {[%clk 0:00:18.7]} 69. Kh2 {[%clk
0:00:13.5]} 69... Rc2+ {[%clk 0:00:19.2]} 70. Kg1 {[%clk 0:00:14.4]} 70... Kf3
{[%clk 0:00:19.3]} 71. Kf1 {[%clk 0:00:15.3]} 71... Ng4 {[%clk 0:00:19.8]} 72.
Ke1 {[%clk 0:00:15]} 72... Re2+ {[%clk 0:00:19.6]} 73. Kd1 {[%clk 0:00:15.9]}
73... Ne3+ {[%clk 0:00:19.8]} 74. Kc1 {[%clk 0:00:16.8]} 74... h3 {[%clk
0:00:20.6]} 75. Kb1 {[%clk 0:00:17.7]} 75... h2 {[%clk 0:00:21.5]} 76. Ka1
{[%clk 0:00:18.6]} 76... h1=Q# {[%clk 0:00:20.8]} 0-1

[Event "*** Titled Tuesday Blitz"]
[Site "Chess.com"]
[Date "2020.04.21"]
[Round "4"]
[White "NastaJ"]
[Black "Olga_Zhuravleva"]
[Result "1/2-1/2"]
[WhiteElo "1834"]
[BlackElo "2207"]
[TimeControl "180+1"]
[EndTime "10:41:28 PDT"]
[Termination "Game drawn by repetition"]

1. e4 {[%clk 0:03:00]} 1... e5 {[%clk 0:02:56.2]} 2. Nf3 {[%clk 0:02:59.9]} 2...
Nc6 {[%clk 0:02:55.6]} 3. Bb5 {[%clk 0:02:59.7]} 3... f5 {[%clk 0:02:56]} 4.
Bxc6 {[%clk 0:02:53.8]} 4... dxc6 {[%clk 0:02:54.6]} 5. Nxe5 {[%clk 0:02:53.1]}
5... Qd4 {[%clk 0:02:54.1]} 6. Nf3 {[%clk 0:02:44.1]} 6... Qxe4+ {[%clk
0:02:53.9]} 7. Qe2 {[%clk 0:02:39.9]} 7... Nf6 {[%clk 0:02:54.3]} 8. Nc3 {[%clk
0:02:37.9]} 8... Qxe2+ {[%clk 0:02:53.6]} 9. Nxe2 {[%clk 0:02:36.7]} 9... Bd6
{[%clk 0:02:53.2]} 10. d3 {[%clk 0:02:35.5]} 10... h6 {[%clk 0:02:51.5]} 11. Bf4
{[%clk 0:02:33.3]} 11... O-O {[%clk 0:02:49.8]} 12. h4 {[%clk 0:02:30.5]} 12...
Nd5 {[%clk 0:02:46.8]} 13. Bxd6 {[%clk 0:02:25.6]} 13... cxd6 {[%clk 0:02:47.7]}
14. O-O {[%clk 0:02:17.8]} 14... Bd7 {[%clk 0:02:45.9]} 15. a3 {[%clk
0:02:17.2]} 15... Rae8 {[%clk 0:02:46.1]} 16. Ng3 {[%clk 0:02:14]} 16... g6
{[%clk 0:02:38.7]} 17. Rfe1 {[%clk 0:02:13.6]} 17... Kg7 {[%clk 0:02:38.6]} 18.
Rxe8 {[%clk 0:02:11.3]} 18... Rxe8 {[%clk 0:02:39.5]} 19. Re1 {[%clk 0:02:10.2]}
19... Rxe1+ {[%clk 0:02:36.6]} 20. Nxe1 {[%clk 0:02:10.3]} 20... Kf6 {[%clk
0:02:37]} 21. Kf1 {[%clk 0:02:10.2]} 21... Nf4 {[%clk 0:02:34.9]} 22. Ne2 {[%clk
0:02:07.2]} 22... Nd5 {[%clk 0:02:31.9]} 23. Nf3 {[%clk 0:02:05.1]} 23... g5
{[%clk 0:02:27.8]} 24. hxg5+ {[%clk 0:02:03.9]} 24... hxg5 {[%clk 0:02:28.2]}
25. Nd2 {[%clk 0:02:03.8]} 25... b5 {[%clk 0:02:14.3]} 26. Nb3 {[%clk
0:01:40.3]} 26... Nb6 {[%clk 0:02:12.2]} 27. Na5 {[%clk 0:01:36.4]} 27... Ke5
{[%clk 0:01:41.4]} 28. f3 {[%clk 0:01:24.8]} 28... Na4 {[%clk 0:01:28.5]} 29. b4
{[%clk 0:01:19.2]} 29... c5 {[%clk 0:01:17.6]} 30. Kf2 {[%clk 0:01:14.5]} 30...
Nb6 {[%clk 0:01:04.2]} 31. g3 {[%clk 0:01:14.2]} 31... Nd5 {[%clk 0:01:00.2]}
32. c3 {[%clk 0:01:09.6]} 32... Be8 {[%clk 0:00:56.5]} 33. bxc5 {[%clk
0:00:57.6]} 33... dxc5 {[%clk 0:00:55.3]} 34. Nb7 {[%clk 0:00:57.8]} 34... c4
{[%clk 0:00:47.9]} 35. d4+ {[%clk 0:00:33.4]} 35... Kf6 {[%clk 0:00:46.7]} 36.
Nc5 {[%clk 0:00:30.8]} 36... Bc6 {[%clk 0:00:42.6]} 37. Na6 {[%clk 0:00:23.3]}
37... Bb7 {[%clk 0:00:30.9]} 38. Nb4 {[%clk 0:00:23.6]} 38... Nc7 {[%clk
0:00:26.3]} 39. Ke3 {[%clk 0:00:21.7]} 39... a5 {[%clk 0:00:24.7]} 40. Nc2
{[%clk 0:00:19.6]} 40... Nd5+ {[%clk 0:00:24]} 41. Kd2 {[%clk 0:00:19.3]} 41...
Nb6 {[%clk 0:00:23.9]} 42. Ke3 {[%clk 0:00:14]} 42... Na4 {[%clk 0:00:23.3]} 43.
Ne1 {[%clk 0:00:04.8]} 43... Ke6 {[%clk 0:00:19.7]} 44. Kd2 {[%clk 0:00:04.7]}
44... Nb6 {[%clk 0:00:19]} 45. Ke3 {[%clk 0:00:04.5]} 45... Nd5+ {[%clk
0:00:19.4]} 46. Kd2 {[%clk 0:00:05.1]} 46... Bc6 {[%clk 0:00:19.5]} 47. Nc2
{[%clk 0:00:03.3]} 47... Kd6 {[%clk 0:00:19.7]} 48. Ne3 {[%clk 0:00:02.7]} 48...
Nxe3 {[%clk 0:00:19]} 49. Kxe3 {[%clk 0:00:02.8]} 49... Kd5 {[%clk 0:00:18.3]}
50. Ng1 {[%clk 0:00:01.3]} 50... b4 {[%clk 0:00:17.8]} 51. axb4 {[%clk
0:00:01.3]} 51... axb4 {[%clk 0:00:18.1]} 52. cxb4 {[%clk 0:00:01.4]} 52... Ba4
{[%clk 0:00:17.2]} 53. Ne2 {[%clk 0:00:01.1]} 53... Bb3 {[%clk 0:00:15.7]} 54.
Nc3+ {[%clk 0:00:02]} 54... Kd6 {[%clk 0:00:15]} 55. f4 {[%clk 0:00:01.9]} 55...
g4 {[%clk 0:00:14.8]} 56. Kd2 {[%clk 0:00:01.9]} 56... Kc6 {[%clk 0:00:13.7]}
57. Ke3 {[%clk 0:00:02.8]} 57... Bc2 {[%clk 0:00:13.3]} 58. Kd2 {[%clk
0:00:03.7]} 58... Bb3 {[%clk 0:00:13]} 59. Ke3 {[%clk 0:00:04.3]} 59... Bc2
{[%clk 0:00:13.3]} 60. Kd2 {[%clk 0:00:05.2]} 60... Bb3 {[%clk 0:00:13.6]}
1/2-1/2

[Event "*** Titled Tuesday Blitz"]
[Site "Chess.com"]
[Date "2020.04.21"]
[Round "4"]
[White "obliviate12"]
[Black "ChessTraining77"]
[Result "1/2-1/2"]
[WhiteElo "2778"]
[BlackElo "2927"]
[TimeControl "180+1"]
[EndTime "10:41:29 PDT"]
[Termination "Game drawn by repetition"]

1. e4 {[%clk 0:03:00.9]} 1... e5 {[%clk 0:02:59.1]} 2. Nf3 {[%clk 0:03:00.9]}
2... Nc6 {[%clk 0:02:59]} 3. Bb5 {[%clk 0:03:01.2]} 3... a6 {[%clk 0:02:58.8]}
4. Ba4 {[%clk 0:03:01.6]} 4... Nf6 {[%clk 0:02:58.9]} 5. O-O {[%clk 0:03:01.7]}
5... Be7 {[%clk 0:02:59.1]} 6. Re1 {[%clk 0:03:00.3]} 6... b5 {[%clk 0:02:59.2]}
7. Bb3 {[%clk 0:03:00.7]} 7... d6 {[%clk 0:02:59.5]} 8. c3 {[%clk 0:03:00.5]}
8... O-O {[%clk 0:02:59.4]} 9. h3 {[%clk 0:03:01]} 9... Na5 {[%clk 0:02:59]} 10.
Bc2 {[%clk 0:03:00.7]} 10... c5 {[%clk 0:02:59.1]} 11. d4 {[%clk 0:03:01.1]}
11... Nd7 {[%clk 0:02:59]} 12. d5 {[%clk 0:02:55.2]} 12... Nb6 {[%clk
0:02:56.2]} 13. b3 {[%clk 0:02:55.1]} 13... Bd7 {[%clk 0:02:42.7]} 14. Nbd2
{[%clk 0:02:54.7]} 14... c4 {[%clk 0:02:39.5]} 15. b4 {[%clk 0:02:42.8]} 15...
Nb7 {[%clk 0:02:39.1]} 16. Nf1 {[%clk 0:02:36]} 16... a5 {[%clk 0:02:38.8]} 17.
Ng3 {[%clk 0:02:31.2]} 17... Re8 {[%clk 0:02:22]} 18. a3 {[%clk 0:02:21.8]}
18... axb4 {[%clk 0:02:16]} 19. cxb4 {[%clk 0:02:21.3]} 19... Na4 {[%clk
0:02:11.7]} 20. Be3 {[%clk 0:02:04.2]} 20... Qc8 {[%clk 0:02:05.2]} 21. Ne2
{[%clk 0:01:57.3]} 21... g6 {[%clk 0:01:21.6]} 22. Nd2 {[%clk 0:01:33.3]} 22...
Nd8 {[%clk 0:01:16.6]} 23. Nb1 {[%clk 0:01:30.7]} 23... f6 {[%clk 0:01:13.7]}
24. Nbc3 {[%clk 0:01:25.6]} 24... Nxc3 {[%clk 0:00:59.7]} 25. Nxc3 {[%clk
0:01:26.5]} 25... Nf7 {[%clk 0:00:59.3]} 26. Rf1 {[%clk 0:01:22.4]} 26... Qb7
{[%clk 0:00:58]} 27. Qe2 {[%clk 0:01:16.6]} 27... Bd8 {[%clk 0:00:57.5]} 28. Kh2
{[%clk 0:01:05.3]} 28... Bb6 {[%clk 0:00:56.9]} 29. f4 {[%clk 0:00:51.4]} 29...
Bd4 {[%clk 0:00:54.3]} 30. Qd2 {[%clk 0:00:51]} 30... Qb6 {[%clk 0:00:49.2]} 31.
Nd1 {[%clk 0:00:41.1]} 31... Bxe3 {[%clk 0:00:38.5]} 32. Nxe3 {[%clk 0:00:40.8]}
32... Qd4 {[%clk 0:00:33.8]} 33. Qf2 {[%clk 0:00:38.2]} 33... exf4 {[%clk
0:00:32.6]} 34. Qxf4 {[%clk 0:00:39.1]} 34... Qe5 {[%clk 0:00:32.3]} 35. Qxe5
{[%clk 0:00:36.1]} 35... fxe5 {[%clk 0:00:26.3]} 36. Ra2 {[%clk 0:00:25.4]}
36... Kg7 {[%clk 0:00:23.2]} 37. Nd1 {[%clk 0:00:22.5]} 37... Nh6 {[%clk
0:00:19.5]} 38. Nc3 {[%clk 0:00:21.9]} 38... Ng8 {[%clk 0:00:19.2]} 39. Rfa1
{[%clk 0:00:19]} 39... Reb8 {[%clk 0:00:18.5]} 40. a4 {[%clk 0:00:17.5]} 40...
bxa4 {[%clk 0:00:17.9]} 41. Bxa4 {[%clk 0:00:18.4]} 41... Bxa4 {[%clk
0:00:15.3]} 42. Rxa4 {[%clk 0:00:19.3]} 42... Rxa4 {[%clk 0:00:14.5]} 43. Rxa4
{[%clk 0:00:20.2]} 43... Nf6 {[%clk 0:00:14.7]} 44. b5 {[%clk 0:00:20.4]} 44...
Rb7 {[%clk 0:00:14.4]} 45. Rxc4 {[%clk 0:00:19.9]} 45... Kf7 {[%clk 0:00:13.2]}
46. Rc6 {[%clk 0:00:18.5]} 46... Ke7 {[%clk 0:00:13.3]} 47. g4 {[%clk 0:00:18]}
47... Nd7 {[%clk 0:00:13]} 48. Kg3 {[%clk 0:00:18]} 48... Nc5 {[%clk 0:00:13.1]}
49. Kh4 {[%clk 0:00:16.7]} 49... h6 {[%clk 0:00:10.7]} 50. g5 {[%clk 0:00:15.8]}
50... h5 {[%clk 0:00:10]} 51. Kg3 {[%clk 0:00:16.3]} 51... Ra7 {[%clk 0:00:10]}
52. Kf2 {[%clk 0:00:11.2]} 52... Ra3 {[%clk 0:00:09.5]} 53. Nd1 {[%clk
0:00:07.9]} 53... Nxe4+ {[%clk 0:00:09.4]} 54. Ke1 {[%clk 0:00:08.4]} 54... Rb3
{[%clk 0:00:05.2]} 55. b6 {[%clk 0:00:06.2]} 55... Nc5 {[%clk 0:00:04.8]} 56.
Rc7+ {[%clk 0:00:05.1]} 56... Nd7 {[%clk 0:00:05.7]} 57. b7 {[%clk 0:00:04.6]}
57... Kd8 {[%clk 0:00:06]} 58. Rc8+ {[%clk 0:00:04.6]} 58... Ke7 {[%clk
0:00:06.5]} 59. Rc7 {[%clk 0:00:05.5]} 59... Kd8 {[%clk 0:00:06.7]} 60. Rc8+
{[%clk 0:00:05.9]} 60... Ke7 {[%clk 0:00:06.8]} 61. Rc7 {[%clk 0:00:06.4]}
1/2-1/2

[Event "*** Titled Tuesday Blitz"]
[Site "Chess.com"]
[Date "2020.04.21"]
[Round "4"]
[White "2L8IWUN"]
[Black "theblitzchamp"]
[Result "1/2-1/2"]
[WhiteElo "2441"]
[BlackElo "2630"]
[TimeControl "180+1"]
[EndTime "10:41:29 PDT"]
[Termination "Game drawn by repetition"]

1. Nf3 {[%clk 0:03:00.9]} 1... Nf6 {[%clk 0:02:59.2]} 2. b3 {[%clk 0:03:00.7]}
2... g6 {[%clk 0:02:56]} 3. Bb2 {[%clk 0:03:01.2]} 3... Bg7 {[%clk 0:02:56.6]}
4. g3 {[%clk 0:03:01.7]} 4... O-O {[%clk 0:02:56.5]} 5. Bg2 {[%clk 0:03:02.2]}
5... d5 {[%clk 0:02:56.8]} 6. O-O {[%clk 0:03:02.7]} 6... c5 {[%clk 0:02:56.9]}
7. e3 {[%clk 0:03:00.3]} 7... Nc6 {[%clk 0:02:56.7]} 8. d4 {[%clk 0:03:00.4]}
8... cxd4 {[%clk 0:02:56.4]} 9. Nxd4 {[%clk 0:03:01.3]} 9... Bd7 {[%clk
0:02:52]} 10. Nxc6 {[%clk 0:03:00.6]} 10... bxc6 {[%clk 0:02:51]} 11. Nd2 {[%clk
0:03:01.1]} 11... Re8 {[%clk 0:02:50.4]} 12. c4 {[%clk 0:03:00.6]} 12... e5
{[%clk 0:02:49.5]} 13. cxd5 {[%clk 0:02:58.7]} 13... cxd5 {[%clk 0:02:48.8]} 14.
Nf3 {[%clk 0:02:49.1]} 14... Bb5 {[%clk 0:02:40.3]} 15. Re1 {[%clk 0:02:40.6]}
15... Ne4 {[%clk 0:02:40]} 16. Nd2 {[%clk 0:02:36.1]} 16... f5 {[%clk
0:02:08.9]} 17. Nxe4 {[%clk 0:02:33.6]} 17... fxe4 {[%clk 0:02:08.2]} 18. Qd2
{[%clk 0:02:30.3]} 18... Bd3 {[%clk 0:01:59.3]} 19. Red1 {[%clk 0:02:18.8]}
19... Rc8 {[%clk 0:01:56.4]} 20. Rac1 {[%clk 0:02:17.1]} 20... Rxc1 {[%clk
0:01:37.2]} 21. Rxc1 {[%clk 0:02:15.7]} 21... d4 {[%clk 0:01:36.9]} 22. Bh3
{[%clk 0:01:38.1]} 22... Bh6 {[%clk 0:01:33.1]} 23. Rc8 {[%clk 0:01:33.7]} 23...
Qe7 {[%clk 0:01:15.3]} 24. Rxe8+ {[%clk 0:01:32.8]} 24... Qxe8 {[%clk
0:01:16.2]} 25. Qa5 {[%clk 0:01:28.7]} 25... Bg7 {[%clk 0:00:49]} 26. exd4
{[%clk 0:01:22.4]} 26... e3 {[%clk 0:00:38.7]} 27. fxe3 {[%clk 0:01:18.6]} 27...
Be4 {[%clk 0:00:26.7]} 28. Qxa7 {[%clk 0:00:57.5]} 28... h5 {[%clk 0:00:24.3]}
29. dxe5 {[%clk 0:00:48.1]} 29... Qc6 {[%clk 0:00:21.1]} 30. Qd7 {[%clk
0:00:44.1]} 30... Qc2 {[%clk 0:00:17.5]} 31. Qc8+ {[%clk 0:00:37.1]} 31... Kh7
{[%clk 0:00:16.7]} 32. Qxc2 {[%clk 0:00:36.2]} 32... Bxc2 {[%clk 0:00:15.8]} 33.
Bd4 {[%clk 0:00:35.9]} 33... Kg8 {[%clk 0:00:14.7]} 34. e6 {[%clk 0:00:32.8]}
34... Bf8 {[%clk 0:00:14]} 35. Bf6 {[%clk 0:00:27]} 35... Bc5 {[%clk 0:00:13.8]}
36. e7 {[%clk 0:00:24.8]} 36... Bxe3+ {[%clk 0:00:12.8]} 37. Kh1 {[%clk
0:00:19.4]} 37... Kf7 {[%clk 0:00:12]} 38. Be5 {[%clk 0:00:14.1]} 38... Kxe7
{[%clk 0:00:10.7]} 39. Bg2 {[%clk 0:00:14.6]} 39... Bc5 {[%clk 0:00:08.5]} 40.
a4 {[%clk 0:00:11.2]} 40... Bxb3 {[%clk 0:00:08.4]} 41. Bc6 {[%clk 0:00:11]}
41... Bc4 {[%clk 0:00:07.5]} 42. Kg2 {[%clk 0:00:10.6]} 42... Ke6 {[%clk
0:00:07.6]} 43. Bf4 {[%clk 0:00:10.5]} 43... Kf5 {[%clk 0:00:07.5]} 44. Kf3
{[%clk 0:00:09.8]} 44... g5 {[%clk 0:00:07.7]} 45. Bc7 {[%clk 0:00:08.2]} 45...
g4+ {[%clk 0:00:07.7]} 46. Kg2 {[%clk 0:00:07.4]} 46... Ba6 {[%clk 0:00:07.5]}
47. h3 {[%clk 0:00:05.9]} 47... Kg5 {[%clk 0:00:06.1]} 48. hxg4 {[%clk
0:00:06.1]} 48... hxg4 {[%clk 0:00:07]} 49. Bd8+ {[%clk 0:00:06.2]} 49... Kf5
{[%clk 0:00:07]} 50. Bd7+ {[%clk 0:00:06.7]} 50... Ke4 {[%clk 0:00:06.6]} 51.
Bxg4 {[%clk 0:00:07.2]} 51... Ke3 {[%clk 0:00:07]} 52. Bg5+ {[%clk 0:00:06.2]}
52... Kd3 {[%clk 0:00:05.7]} 53. Bf3 {[%clk 0:00:06.4]} 53... Kc4 {[%clk
0:00:05]} 54. Be2+ {[%clk 0:00:05.6]} 54... Kb4 {[%clk 0:00:05.4]} 55. Bxa6
{[%clk 0:00:06.5]} 55... Kxa4 {[%clk 0:00:06.3]} 56. Bc8 {[%clk 0:00:06.5]}
56... Ka5 {[%clk 0:00:07.2]} 57. Bg4 {[%clk 0:00:07.1]} 57... Ka6 {[%clk
0:00:08]} 58. Bf4 {[%clk 0:00:07.7]} 58... Kb6 {[%clk 0:00:08.9]} 59. Bf3 {[%clk
0:00:08.3]} 59... Kb5 {[%clk 0:00:08.3]} 60. g4 {[%clk 0:00:08.8]} 60... Bf8
{[%clk 0:00:08.7]} 61. Kg3 {[%clk 0:00:09.7]} 61... Kc5 {[%clk 0:00:09.5]} 62.
g5 {[%clk 0:00:10]} 62... Kd4 {[%clk 0:00:10]} 63. Kg4 {[%clk 0:00:09.9]} 63...
Bg7 {[%clk 0:00:10.3]} 64. Bd1 {[%clk 0:00:09.4]} 64... Kc5 {[%clk 0:00:10.9]}
65. Bc2 {[%clk 0:00:09.9]} 65... Kd5 {[%clk 0:00:11.1]} 66. Bf5 {[%clk
0:00:10.6]} 66... Kc6 {[%clk 0:00:10.7]} 67. g6 {[%clk 0:00:10.1]} 67... Kd5
{[%clk 0:00:11]} 68. Bg5 {[%clk 0:00:10.1]} 68... Ke5 {[%clk 0:00:11]} 69. Bc8
{[%clk 0:00:10]} 69... Kd6 {[%clk 0:00:10.5]} 70. Bf5 {[%clk 0:00:10.4]} 70...
Ke5 {[%clk 0:00:11]} 71. Bf4+ {[%clk 0:00:10.3]} 71... Kf6 {[%clk 0:00:10.8]}
72. Bg5+ {[%clk 0:00:10]} 72... Ke5 {[%clk 0:00:10.4]} 1/2-1/2